{"text_format":"1","workbook":"xlsx","n_sheets":5,"sheets":["Contents","Introduction ABS","ABS 01","ABS 02","ABS 02 (2)"],"not_rendered":{"charts":0,"images":2,"macros":1,"external_links":0,"defined_names":0,"comments":0,"pivot_tables":0},"unopened":[],"bounds":{"document_bytes":16777216,"sheet_cells":100000,"rows_first":2000,"rows_last":500,"rows_between":2000,"halvings":0,"cell_chars":16384,"cell_head_chars":4096},"cells_cut":0,"cells_raw":0,"read":"whole","date_system":"1900"}

{"sheet":"Contents","index":0,"n_rows":47,"n_cols":6,"rows_kept":47,"cut":false,"hidden":false,"merged":[]}
["ABS Function"]
[null,"automateexcel.com/functions/abs-formula-excel"]
[]
[null,"Table of Contents",null,null,null,"Other Resources"]
[null,"Introduction ABS",null,null,null,"Excel Formulas w/Examples"]
[null,"ABS 01",null,null,null,"Excel Boot Camp - Learn Excel inside Excel"]
[null,"ABS 02",null,null,null,"Excel Functions & Formulas Tutorial"]
[null,"ABS 02 (2)"]
[]
[]
[]
[]
[null,"Excel Boot Camp"]
[null,"  Learn Excel Inside Excel"]
[]
[]
[]
[]
[]
[]
[]
[]
[]
[]
[]
[]
[]
[]
[]
[]
[]
[]
[]
[]
[]
[]
[null,"           Learn Excel inside Excel with our Interactive Tutorial"]
[null,"           Automatically Graded Exercises"]
[null,"           Shortcuts & Best Practices \"Work Smarter, not Harder\""]
[]
[]
[]
[]
[]
[]
[]
[null,"Course Contents"]

{"sheet":"Introduction ABS","index":1,"n_rows":16,"n_cols":4,"rows_kept":16,"cut":false,"hidden":false,"merged":[]}
[]
[null,"ABS",null,"=ABS (number)"]
[]
[null,"The Excel ABS function returns the absolute value of a number."]
[]
[null,"Number","Result","Function"]
[null,152.75,{"$f":"ABS(B7)","v":152.75},{"$f":"IF(_xlfn.ISFORMULA(C7),_xlfn.FORMULATEXT(C7),C7)","v":"=ABS(B7)"}]
[null,-152.75,{"$f":"ABS(B8)","v":152.75},{"$f":"IF(_xlfn.ISFORMULA(C8),_xlfn.FORMULATEXT(C8),C8)","v":"=ABS(B8)"}]
[null,100,100,"=ABS(B9)"]
[null,-100,100,"=ABS(B10)"]
[null,1E-4,1E-4,"=ABS(B11)"]
[null,-9.9999000000000002,9.9999000000000002,"=ABS(B12)"]
[]
[null,"automateexcel.com/functions/abs-formula-excel"]
[]
[null,"Excel Boot Camp - Learn Excel Inside Excel"]

{"sheet":"ABS 01","index":2,"n_rows":7,"n_cols":7,"rows_kept":7,"cut":false,"hidden":false,"merged":[]}
[]
[null,null,"Angle","ABS",null,"Increment:",0.1]
[null,null,-1,{"$f":"ABS(C3)","v":1}]
[]
[null,"automateexcel.com/functions/abs-formula-excel"]
[]
[null,"Excel Boot Camp - Learn Excel Inside Excel"]

{"sheet":"ABS 02","index":3,"n_rows":8,"n_cols":7,"rows_kept":8,"cut":false,"hidden":false,"merged":[]}
[]
[null,null,"Angle","ABS",null,"Increment:",0.1]
[null,null,-1,{"$f":"ABS(C3)","v":1}]
[null,null,{"$f":"C3+$G$2","v":-0.9},{"$f":"ABS(C4)","v":0.9}]
[]
[null,"automateexcel.com/functions/abs-formula-excel"]
[]
[null,"Excel Boot Camp - Learn Excel Inside Excel"]

{"sheet":"ABS 02 (2)","index":4,"n_rows":17,"n_cols":7,"rows_kept":17,"cut":false,"hidden":false,"merged":[]}
[]
[null,null,"Angle","ABS",null,"Increment:",0.1]
[null,null,-1,{"$f":"ABS(C3)","v":1}]
[null,null,{"$f":"C3+$G$2","v":-0.9},{"$f":"ABS(C4)","v":0.9}]
[null,null,{"$f":"C4+$G$2","v":-0.8},0.8]
[null,null,-0.70000000000000007,{"$f":"ABS(C6)","v":0.70000000000000007}]
[null,null,-0.60000000000000009,0.60000000000000009]
[null,null,-0.50000000000000011,0.50000000000000011]
[null,null,-0.40000000000000013,0.40000000000000013]
[null,null,null,0]
[null,null,null,0]
[null,null,null,0]
[null,null,null,{"$f":"ABS(C13)","v":0}]
[]
[null,"automateexcel.com/functions/abs-formula-excel"]
[]
[null,"Excel Boot Camp - Learn Excel Inside Excel"]